Cogmind - Beta 11.1 @@@ ROGUE MODE // 2022.07.02 @ 17:40:01 Player: Jezoensis Result: Establishing 0b11! Performance ------------- Evolutions (9) 4500 Regions Visited (25) 5000 Robots Destroyed (308) 1540 Value Destroyed (15780) 15780 Prototype IDs (300) 6000 Alien Tech Used (0) 0 Bonus (33796) 33796 TOTAL SCORE: 66616 Bonus ------- High Alert Combat Kills 3150 Follower Combat Kills 759 Entered DSFs 1000 Network Hubs Disabled 200 Aligned with FarCom 300 Met Warlord at Base 500 MAIN.C Attacked Warlord 500 Warlord Defense Kills 100 Met Warlord at Research 2000 Destroyed MAIN.C Guards 500 Met MAIN.C 5000 Destroyed MAIN.C Shell 5000 Destroyed MAIN.C 10000 Met Warlord at Command 2000 Win 3000 Friendly Fire -213 Cogmind --------- Core Integrity 718/1600 Matter 300/300 Energy 99/100 System Corruption 42% Temperature Cool (0) Movement Core (50) Location 0b11 Command Parts ------- > --- POWER (2) -------- (None) > --- PROPULSION (5) --- (None) > --- UTILITY (14) ----- (None) > --- WEAPON (4) ------- (None) > --- INVENTORY (5) ---- (None) Peak State ------------ > --- POWER ------------ Improved Quantum Reactor Improved Quantum Reactor > --- PROPULSION ------- Advanced Medium Treads Biometal Heavy Treads Advanced Heavy Siege Treads > --- UTILITY ---------- Huge Storage Unit Experimental Optical Array Advanced Terrain Scan Processor Advanced Salvage Targeting Computer Experimental Targeting Computer Advanced Target Analyzer Advanced Target Analyzer Experimental Core Analyzer Experimental Core Analyzer Advanced Kinecellerator Advanced Weapon Cycler Advanced Force Field Advanced Hacking Suite Improved System Shield > --- WEAPON ----------- Helical Railgun Multirail Multirail Heavy Gauss Cannon > --- INVENTORY -------- Quantum Reactor Medium Treads Biometal Heavy Treads Advanced Heavy Siege Treads Experimental Heat Sink Advanced Cooling System Superbattery Advanced Matter Compressor Experimental Matter Compressor Advanced Terrain Scanner Focal Shield Advanced Thermal Shield Improved Shock Absorption System Advanced System Shield Long-range Tractor Beam Nova Cannon Linear Accelerator Linear Accelerator Linear Accelerator Linear Accelerator Heavy Linear Accelerator Advanced Remote Datajack [Rating: 218] Favorites ----------- Power Improved Quantum Reactor Engine Improved Deuterium Engine Power Core Neutrino Core Reactor Improved Quantum Reactor Propulsion Improved Treads Treads Improved Treads Wheel Wheel Utility Advanced Terrain Scan Processor Device Improved Terrain Scanner Storage Huge Storage Unit Processor Advanced Terrain Scan Processor Hackware Advanced Hacking Suite Protection Improved Utility Shielding Weapon Gauss Rifle Energy Gun Vortex Shotgun Energy Cannon Nova Cannon Ballistic Gun Gauss Rifle Ballistic Cannon Linear Accelerator Launcher Advanced EMP Blaster Special Weapon Mining Laser Impact Weapon Heavy Mace Slashing Weapon Segregator Build | -11 -10 -10 -10 -9 -8 -7 -7 -7 -7 -6 -5 -5 -5 -5 -4 -4 -4 -4 -4 -4 -3 -3 -2 -1 -1 ------- Run | Scr Mat Min Exi Min Mat Fac Was Fac DSF Fac Fac Upp Upp War Pro Fac Ext Cet Arc Hub Res DSF Res Acc Com Slots Evolved 18 | . . . . . 4 2 . . . 2 2 . . . . 2 . . . . 2 . 2 2 . Power 1 | . . . . . . . . . . . . . . . . 1 . . . . . . . . . Propulsion 3 | . . . . . 1 1 . . . . 1 . . . . . . . . . . . . . . Utility 12 | . . . . . 2 1 . . . 2 1 . . . . . . . . . 2 . 2 2 . Weapon 2 | . . . . . 1 . . . . . . . . . . 1 . . . . . . . . . Parts Attached 601 | 10 11 8 2 11 45 21 1 2 24 22 64 14 4 21 11 16 79 6 12 12 15 27 41 46 76 Power 30 | 2 1 1 . . 3 1 . . 1 . 1 1 . 1 1 2 4 1 1 . 1 . 4 . 4 Engine 8 | 2 1 1 . . 2 . . . 1 . 1 . . . . . . . . . . . . . . Core 6 | . . . . . 1 1 . . . . . 1 . . . 1 2 . . . . . . . . Reactor 16 | . . . . . . . . . . . . . . 1 1 1 2 1 1 . 1 . 4 . 4 Propulsion 89 | 4 6 2 . 5 11 7 . . 7 3 5 1 . 5 . . 9 2 2 2 1 2 3 5 7 Treads 67 | . 2 1 . 2 6 2 . . 7 3 5 1 . 5 . . 9 2 2 2 1 2 3 5 7 Leg . | . . . . . . . . . . . . . . . . . . . . . . . . . . Wheel 22 | 4 4 1 . 3 5 5 . . . . . . . . . . . . . . . . . . . Hover . | . . . . . . . . . . . . . . . . . . . . . . . . . . Flight . | . . . . . . . . . . . . . . . . . . . . . . . . . . Utility 315 | 2 2 3 2 2 9 8 . 1 11 12 46 9 3 10 7 9 35 3 7 6 8 19 24 33 44 Device 256 | 1 2 3 . 2 5 6 . 1 5 6 41 8 3 7 7 8 29 2 7 3 7 19 19 29 36 Storage 22 | 1 . . 2 . 1 . . . 2 1 4 1 . . . . 3 . . 2 . . 1 1 3 Processor 22 | . . . . . 3 1 . . 2 1 . . . 3 . 1 2 . . 1 1 . 4 2 1 Hackware 8 | . . . . . . . . . . 2 1 . . . . . 1 . . . . . . 1 3 Protection 7 | . . . . . . 1 . . 2 2 . . . . . . . 1 . . . . . . 1 Artifact . | . . . . . . . . . . . . . . . . . . . . . . . . . . Weapon 167 | 2 2 2 . 4 22 5 1 1 5 7 12 3 1 5 3 5 31 . 2 4 5 6 10 8 21 Energy Gun 23 | . . . . 1 2 3 . 1 2 2 1 1 . 2 . . 8 . . . . . . . . Energy Cannon 24 | . . . . . 2 . . . 1 1 3 1 . . . 2 . . . 1 2 3 2 4 2 Ballistic Gun 77 | 2 1 1 . 2 4 1 . . 1 4 6 1 1 2 1 3 16 . 2 3 3 3 8 4 8 Ballistic Cannon 16 | . . . . . 6 . . . . . . . . . . . . . . . . . . . 10 Launcher 17 | . . . . 1 3 1 1 . 1 . 2 . . 1 2 . 5 . . . . . . . . Special Weapon 8 | . 1 1 . . 5 . . . . . . . . . . . . . . . . . . . 1 Impact Weapon 1 | . . . . . . . . . . . . . . . . . 1 . . . . . . . . Slashing Weapon 1 | . . . . . . . . . . . . . . . . . 1 . . . . . . . . Piercing Weapon . | . . . . . . . . . . . . . . . . . . . . . . . . . . Special Melee Weapon . | . . . . . . . . . . . . . . . . . . . . . . . . . . Unidentified Prototypes 18 | . . . . . 1 . . . 1 1 . . . 5 . . . 2 . 2 . . 3 1 2 Corrupted Parts 9 | . . . . . . . . . 2 . . . . . 1 . . 1 . 4 . . 1 . . System Corruption 40 | . . . . . . . . . 10 . . . . . 10 . . 3 . 16 . . 1 . . Parts Lost 58 | . 1 . . 2 1 5 . . 3 1 2 1 1 . 1 . 15 1 . . . . 1 1 22 Power 8 | . . . . . . 1 . . . . 1 . . . . . 2 . . . . . . . 4 Propulsion 16 | . 1 . . . 1 3 . . 2 . . 1 . . . . 3 1 . . . . . . 4 Utility 19 | . . . . . . . . . . . 1 . 1 . 1 . 5 . . . . . 1 1 9 Weapon 15 | . . . . 2 . 1 . . 1 1 . . . . . . 5 . . . . . . . 5 Highest Loss Streak 13 | . 1 . . 2 1 4 . . 3 1 1 1 1 . 1 . 6 1 . . . . 1 1 13 To Critical Strikes 2 | . . . . . . . . . . . . . . . . . 2 . . . . . . . . Average Slot Usage (%) 94 | . 98 100 100 99 99 99 100 100 99 95 93 93 94 98 99 100 95 89 89 89 90 90 90 91 88 Engine 2 | . 14 14 14 14 8 4 . . 5 6 5 3 . . . . . . . . . . . . . Core 1 | . . . . . . 2 7 7 1 . . 1 5 4 . 1 3 5 3 . . . . . . Reactor 4 | . . . . . . . . . . . . . . . 5 8 6 5 6 10 9 9 8 8 7 Treads 17 | . 1 3 . 2 10 7 15 15 27 22 23 22 23 27 29 26 22 16 15 15 14 14 13 12 11 Wheel 3 | . 26 24 28 25 15 22 15 15 2 . . . . . . . . . . . . . . . . Device 13 | . 12 14 14 14 12 9 7 7 6 13 17 18 17 16 10 10 10 7 8 9 19 19 17 16 11 Storage 6 | . 14 14 14 14 9 7 7 7 7 6 6 9 11 6 5 5 5 5 5 5 4 4 6 4 4 Processor 22 | . . . . . 14 15 15 15 15 20 17 17 17 21 29 26 24 26 26 26 23 23 27 31 31 Hackware 1 | . . . . . . . . . . . . . . . . . . . . . . . . 3 6 Protection 1 | . . . . . . 4 7 7 6 5 2 . . . . . . 2 1 . . . . . . Energy Gun 1 | . . . . 2 9 6 1 6 8 5 . 1 . . . . 3 5 . . . . . . . Ballistic Gun 15 | . 28 25 28 24 10 15 15 15 5 7 15 12 17 16 16 18 16 15 20 17 17 17 15 15 11 Naked Turns 38 | . . . . . . . . . . . . . . . . . . . . . . . . . 38 Heaviest Build 184 | 11 13 13 48 28 62 63 59 59 70 119 116 114 113 116 116 135 139 138 138 142 154 154 161 150 184 Greatest Support 190 | 26 26 26 26 26 66 36 20 20 92 121 144 121 116 138 138 138 152 173 178 178 178 183 190 190 185 Greatest Overweight (x) 3 | . . . 1 1 2 2 2 2 3 . . . . . . . 1 . . . . . . . . Average Overweight (x) . | . . . . 1 1 1 2 2 . . . . . . . . . . . . . . . . . Largest Inventory Capacity 25 | 8 8 8 20 15 20 20 20 20 20 25 25 25 25 25 25 25 25 25 25 25 25 25 25 25 25 Average Capacity 23 | 7 8 8 16 15 18 20 20 20 20 22 25 25 25 25 25 25 24 25 25 25 25 25 25 25 24 Most Carried 25 | 7 8 8 11 14 20 20 20 20 20 25 25 25 24 25 25 25 25 25 25 25 25 25 25 25 25 Average Carried 22 | 3 7 7 9 12 17 19 18 19 19 22 24 23 23 24 24 24 23 24 24 24 24 24 24 24 22 Final Capacity 25 | 8 8 8 15 15 20 20 20 20 20 25 25 25 25 25 25 25 25 25 25 25 25 25 25 25 25 Final Carried 25 | 7 7 8 11 14 20 17 20 20 20 25 25 24 24 25 25 24 24 25 25 25 25 25 25 25 25 Class Distribution -------------------- 43% | Scavenger-Skirmisher 27% | Scavenger-Gunner 19% | Scavenger-Mutant 6% | Mutant Dominant Class ---------------- Mutant | -10/Materials Mutant | -10/Mines Mutant | -10/Exiles Mutant | -9/Mines Scavenger-Skirmisher | -8/Materials Scavenger-Skirmisher | -7/Factory Scavenger-Skirmisher | -7/Waste Scavenger-Skirmisher | -7/Factory Skirmisher | -7/DSF Scavenger-Mutant | -6/Factory Scavenger-Skirmisher | -5/Factory Scavenger-Skirmisher | -5/Upper Caves Scavenger-Skirmisher | -5/Upper Caves Scavenger-Skirmisher | -5/Warlord Scavenger-Skirmisher | -4/Proximity Caves Scavenger-Skirmisher | -4/Factory Scavenger-Skirmisher | -4/Extension Scavenger-Skirmisher | -4/Cetus Scavenger-Skirmisher | -4/Archives Scavenger-Mutant | -4/Hub_04(d) Scavenger-Skirmisher | -3/Research Scavenger-Gunner | -3/DSF Scavenger-Gunner | -2/Research Scavenger-Gunner | -1/Access Scavenger-Gunner | -1/Command Resources | -11 -10 -10 -10 -9 -8 -7 -7 -7 -7 -6 -5 -5 -5 -5 -4 -4 -4 -4 -4 -4 -3 -3 -2 -1 -1 ----------- Run | Scr Mat Min Exi Min Mat Fac Was Fac DSF Fac Fac Upp Upp War Pro Fac Ext Cet Arc Hub Res DSF Res Acc Com Matter Collected 16449 | 263 258 120 122 120 747 900 221 . 323 275 1090 242 119 358 351 372 2124 219 357 250 232 692 1090 1645 3959 Remotely 6861 | . . . . . . . . . . . 912 . . 209 224 175 735 169 327 . . 602 707 603 2198 Salvage Created 18671 | 96 208 150 . 237 691 772 429 . 788 471 1646 214 93 64 579 421 4052 130 420 61 369 571 1305 2020 2884 Parts 931 | 10 14 10 . 20 36 31 2 . 30 14 74 5 10 4 32 27 148 9 21 3 25 46 76 144 140 Haulers Intercepted 6 | . . . . . 3 1 . . . 1 . . . . . . . . . . . . 1 . . Recyclers Shooed 15 | . . . . 2 . 1 . . . 1 4 . . . . 2 2 . . . 1 . . 1 1 Parts Field Recycled 12 | . . . . . . . . . . 12 . . . . . . . . . . . . . . . Retrieved Matter 190 | . . . . . . . . . . 190 . . . . . . . . . . . . . . . Parts Self-Destructed 23 | . . . . . . . . . . . . . 9 . 14 . . . . . . . . . . Prevented 14 | . . . . . . . . . . . . 3 . . 11 . . . . . . . . . . Kills | -11 -10 -10 -10 -9 -8 -7 -7 -7 -7 -6 -5 -5 -5 -5 -4 -4 -4 -4 -4 -4 -3 -3 -2 -1 -1 ------- Run | Scr Mat Min Exi Min Mat Fac Was Fac DSF Fac Fac Upp Upp War Pro Fac Ext Cet Arc Hub Res DSF Res Acc Com Combat Hostiles Destroyed 230 | . 5 4 . 7 13 9 2 . 8 1 18 4 4 1 15 2 52 1 4 . 3 7 14 21 35 Guns 183 | . 5 4 . 6 6 9 1 . 1 1 13 4 4 1 8 2 45 1 4 . 3 7 14 21 23 Cannons 18 | . . . . . 5 . . . 1 . . . . . . . . . . . . . . . 12 AOE 24 | . . . . 1 2 . 1 . 4 . 2 . . . 7 . 7 . . . . . . . . Classes Destroyed 25 | 2 1 . . 3 5 1 1 . 2 . . 1 . . . . 5 . . . . . 2 . 2 Worker 14 | . . . . . 1 . . . . . 2 . . . . . 5 . . 1 . . 1 2 2 Builder 12 | . . . . 1 3 1 . . . 1 1 . . . . 2 1 . . . 1 . . 1 . Tunneler 8 | 2 . . . 1 . . . . . . . . . . . 4 1 . . . . . . . . Hauler 6 | . . . . . 3 1 . . . 1 . . . . . . . . . . . . 1 . . Recycler 21 | 1 . . . 1 1 2 . . . 2 4 . . . . 1 6 . . . 1 . . 1 1 Carrier 1 | . . . . . . . . . . . . . . . . . 1 . . . . . . . . Mechanic 2 | . . . . . . . . . . . . . . . . . . . . . . . . . 2 Operator 2 | . . . . . . . . . . . . . . . . . . . . . . . . . 2 Watcher 13 | . . . . . 2 . . . . . 2 . . . . . 2 1 . 1 . . 1 4 . Swarmer 30 | . . . . 3 3 . . . . . 1 2 4 . 11 . 3 . . . . . 2 . 1 Saboteur 2 | . . . . . . . . . . . . . . . . . 1 . . . . . . . 1 Grunt 82 | . 5 4 . 3 7 5 . . 3 . 9 . . 1 3 . 27 . . . . . 4 5 6 Brawler 7 | . . . . 1 . 1 . . . . 1 . . . 1 . 1 . . . . . 1 . 1 Duelist 7 | . . . . . . . . . . . . . . . . . 5 . . . . . . . 2 Protector 2 | . . . . . . . . . . . . . . . . . 1 . . . . . . . 1 Sentry 25 | . . . . . 2 2 . . 1 1 2 1 . . . 1 5 . 4 . 1 . 1 2 2 Specialist 7 | . . . . . . . . . 2 . . . . . . . . . . . . 4 . . 1 Hunter 11 | . . . . . 1 . . . 1 . 2 . . . . . 4 . . . . . . . 3 Programmer 38 | . . . . . . 1 . . . . 3 . . . . 1 2 . . . 2 2 3 13 11 Heavy 4 | . . . . . . . . . 1 . . . . . . . . . . . . 1 . 1 1 Behemoth 2 | . . . . . . . . . . . . . . . . . 1 . . . . . . . 1 Compactor 2 | . . . . . . . 2 . . . . . . . . . . . . . . . . . . Cetus Guard 1 | . . . . . . . . . . . . . . . . . . 1 . . . . . . . M Guard 1 | . . . . . . . . . . . . . . . . . . . . . . . . . 1 Combat Programmer 1 | . . . . . . . . . . . . . . . . . . . . . . . . . 1 Striker 1 | . . . . . . . . . . . . . . . . . . . . . . . 1 . . Executioner 2 | . . . . . . . . . . . . . . . . . . . . . . . 2 . . Butcher 1 | . . . . . . . . . . . . . . . . . 1 . . . . . . . . Guerrilla 1 | . . . . . . . . . . . . . . . . . 1 . . . . . . . . Mutant 1 | . . . . . . . . . . . . 1 . . . . . . . . . . . . . Best Kill Streak 13 | 2 3 4 . 5 3 5 1 . 3 1 6 3 4 1 5 2 13 2 2 2 4 3 7 7 9 Combat Bots Only 10 | . 3 4 . 3 3 4 1 . 3 1 5 3 4 1 5 1 10 1 2 . 2 3 6 5 8 Max Kills in Single Turn 3 | 1 1 1 . 1 2 1 1 . 2 1 2 2 1 1 3 1 3 1 1 1 1 1 3 2 3 Gunslinging 2 | . . . . . . . . . . . . 1 . . 1 . 1 . . . . . 1 1 2 Exploded 3 | . . . . 1 1 . 1 . 2 . 1 . . . 3 . 2 . . . . . . . . Melee . | . . . . . . . . . . . . . . . . . . . . . . . . . . Uniques/NPCs Destroyed 2 | . . . . . . . . . . . . . . . . . . . . . . . . . 2 MAIN.C Shell (-1/Command) MAIN.C (-1/Command) Combat | -11 -10 -10 -10 -9 -8 -7 -7 -7 -7 -6 -5 -5 -5 -5 -4 -4 -4 -4 -4 -4 -3 -3 -2 -1 -1 -------- Run | Scr Mat Min Exi Min Mat Fac Was Fac DSF Fac Fac Upp Upp War Pro Fac Ext Cet Arc Hub Res DSF Res Acc Com Damage Taken 20982 | . 248 77 . 298 306 813 15 . 520 37 1179 437 103 286 669 303 3554 114 432 78 184 224 900 1281 8924 Core 2007 | . 44 46 . 66 . 76 5 . 56 2 156 61 . 88 51 79 274 . . . 65 1 55 25 857 Absorbed by Shields 2469 | . . . . . . . . . . 48 . . . . . 109 516 33 . . 16 241 408 . 1098 Reduced by Siege Mode 2281 | . . . . . . . . . . . 80 7 7 . . . 170 9 37 . . 26 114 165 1666 Redirected to Shielding 217 | . . . . . . 67 . . 3 3 39 . . . . . . . . . . . . . 105 Core Remaining (%) 78 | 100 . . . 37 100 . . . 80 99 . . . . 64 . . . . 69 . 94 96 . 44 Volleys Fired 699 | 6 16 17 . 27 51 34 9 . 15 15 56 24 7 5 19 22 100 9 16 3 14 19 35 52 128 Largest 4 | 2 2 2 . 2 3 3 3 . 3 3 3 3 3 3 3 4 4 4 4 3 4 4 4 4 4 Hottest 268 | 40 40 100 . 60 151 107 84 . 179 174 101 121 84 121 94 182 186 182 182 103 211 133 183 218 268 Shots Fired 2069 | 12 32 29 . 53 124 97 26 . 36 39 140 44 20 16 51 76 360 33 63 6 44 58 116 180 414 Gun 1720 | 12 32 24 . 52 82 96 18 . 23 31 125 31 20 16 42 71 349 33 63 4 38 53 107 171 227 Cannon 288 | . . . . . 30 . . . 8 8 7 13 . . . 5 . . . 2 6 5 9 9 186 Launcher 45 | . . . . 1 2 1 8 . 5 . 8 . . . 9 . 11 . . . . . . . . Special 16 | . . 5 . . 10 . . . . . . . . . . . . . . . . . . . 1 Kinetic 1727 | 12 32 24 . 46 67 66 18 . 6 24 124 25 20 13 42 71 291 27 59 4 38 53 107 171 387 Thermal 170 | . . 5 . 6 48 4 . . . 15 7 13 . . . 5 . 6 4 2 6 5 9 9 26 Explosive 22 | . . . . 1 2 . 8 . . . . . . . 3 . 8 . . . . . . . . Electromagnetic 91 | . . . . . 7 27 . . 30 . 9 6 . 3 6 . 3 . . . . . . . . Entropic 58 | . . . . . . . . . . . . . . . . . 58 . . . . . . . . Robot Hit Streak 78 | 3 13 10 . 7 15 18 12 . 18 16 17 14 3 9 7 15 22 24 26 . 26 29 29 15 78 Robot Miss Streak 7 | 1 1 4 . 4 7 3 1 . 1 2 2 1 2 1 7 2 6 1 1 . 3 1 2 5 3 Penetration Max 2 | . . . . . . 1 . . . . 1 . . 1 1 1 2 1 1 . 1 1 1 1 2 Secondary Targets 46 | . . . . 1 . 2 . . . . 1 1 . 1 3 . 19 1 1 . . 2 8 3 3 Max Gunslinging Chain 2 | . . . . 1 . 1 . . . . 1 1 . 1 1 . 1 1 1 . . 1 1 2 2 Shots Hit Robots 1478 | 7 26 16 . 29 95 73 20 . 28 27 97 26 9 13 27 45 272 30 54 . 27 46 84 104 323 Core Hits 832 | 6 12 8 . 14 82 29 11 . 14 13 58 10 4 4 21 16 197 10 16 5 12 17 35 55 183 Critical Kills 35 | . . 2 . . . . . . . . . . . . . . 3 . . . . 1 7 12 10 Critical Parts Destroyed 54 | . . . . . 1 1 . . . 1 1 . . . . 1 12 1 . . . 7 9 7 13 Critical Strikes 113 | . . 2 . . 2 1 . . . 2 1 . . . . 1 15 1 . . . 8 17 19 44 Burn 2 | . . . . . 1 . . . . 1 . . . . . . . . . . . . . . . Destroy 94 | . . 2 . . 1 1 . . . 1 1 . . . . 1 9 1 . . . 8 17 19 33 Blast 11 | . . . . . . . . . . . . . . . . . . . . . . . . . 11 Detonate 6 | . . . . . . . . . . . . . . . . . 6 . . . . . . . . Melee Attacks 1 | . . . . . . . . . . . . . . . . . 1 . . . . . . . . Impact 1 | . . . . . . . . . . . . . . . . . 1 . . . . . . . . Slashing . | . . . . . . . . . . . . . . . . . . . . . . . . . . Piercing . | . . . . . . . . . . . . . . . . . . . . . . . . . . Sneak Attacks . | . . . . . . . . . . . . . . . . . . . . . . . . . . Combat Hostiles . | . . . . . . . . . . . . . . . . . . . . . . . . . . Follow-up Attacks . | . . . . . . . . . . . . . . . . . . . . . . . . . . Damage Inflicted 49402 | 63 203 127 . 475 1706 1421 732 . 860 677 3404 555 127 269 1141 1320 11157 958 1285 223 919 1491 2622 3798 13869 Guns 35926 | 63 203 127 . 259 1082 1416 247 . 304 496 2573 518 127 269 492 1301 8525 958 1285 . 804 1491 2622 3780 6984 Cannons 7536 | . . . . . 438 . . . 206 127 . . . . . . . . . . . . . . 6765 Explosions 5375 | . . . . 216 186 5 485 . 350 . 742 37 . . 649 . 2489 . . 216 . . . . . Melee . | . . . . . . . . . . . . . . . . . . . . . . . . . . Ramming 565 | . . . . . . . . . . 54 89 . . . . 19 143 . . 7 115 . . 18 120 Kinetic 37825 | 63 203 127 . 209 871 977 247 . 59 373 2553 431 127 197 492 1301 5242 814 1213 . 804 1491 2622 3780 13629 Thermal 2528 | . . . . 190 472 30 . . 55 250 69 . . . 132 . 994 144 72 . . . . . 120 Explosive 2433 | . . . . 76 186 . 485 . . . . . . . 263 . 1423 . . . . . . . . Electromagnetic 2768 | . . . . . 177 414 . . 746 . 693 124 . 72 254 . 72 . . 216 . . . . . Impact . | . . . . . . . . . . . . . . . . . . . . . . . . . . Slashing . | . . . . . . . . . . . . . . . . . . . . . . . . . . Piercing . | . . . . . . . . . . . . . . . . . . . . . . . . . . Entropic 3283 | . . . . . . . . . . . . . . . . . 3283 . . . . . . . . Highest Corruption 42 | . . . . . . 3 17 17 27 4 1 2 2 2 12 . 3 6 6 22 . 2 2 4 42 Average Corruption 5 | . . . . . . 1 10 17 21 3 1 1 2 2 2 . 2 4 6 6 . 1 1 2 10 Corruption Purged . | . . . . . . . . . . . . . . . . . . . . . . . . . . Corruption Blocked 72 | . . . . . . . . . . . . . . . . . . . . . . . 42 30 . Effects 198 | . . . . . . 2 6 4 19 4 3 6 3 9 3 . 26 5 4 10 . 1 6 20 67 Message Errors 45 | . . . . . . . 3 2 3 1 . 1 . 2 . . 3 1 2 2 . . 3 6 16 Matter Fused 54 | . . . . . . 1 1 . 4 1 . 3 2 1 . . 11 1 . 3 . 1 1 5 19 Heat Flow Errors 19 | . . . . . . . . . 4 1 . 2 . 1 1 . . . 1 1 . . 1 3 4 Energy Discharges 18 | . . . . . . . . 2 1 . . . . 1 1 . 5 2 . . . . . 1 5 Parts Rejected 2 | . . . . . . . . . . . . . 1 . . . . . . . . . . . 1 Data Loss (minor) 19 | . . . . . . . 1 . 3 1 . . . 2 . . 2 1 . 3 . . . 2 4 Data Loss (major) 13 | . . . . . . 1 1 . 1 . . . . 1 . . 4 . . . . . . . 5 Misfires 11 | . . . . . . . . . 1 . 2 . . 1 1 . . . . 1 . . . 2 3 Alerts 3 | . . . . . . . . . . . . . . . . . . . . . . . 1 1 1 Misdirections 1 | . . . . . . . . . . . . . . . . . . . . . . . . . 1 Weapon Failures 13 | . . . . . . . . . 2 . 1 . . . . . 1 . 1 . . . . . 8 Overload Shots . | . . . . . . . . . . . . . . . . . . . . . . . . . . Overflow Damage 353 | . . . . . . . . . . 2 23 . . . 51 . 90 . . . . . . . 187 Projectiles 174 | . . . . . . . . . . 2 . . . . . . . . . . . . . . 172 Explosions 115 | . . . . . . . . . . . . . . . 51 . 64 . . . . . . . . Melee 64 | . . . . . . . . . . . 23 . . . . . 26 . . . . . . . 15 Knockbacks 41 | . . . . . 14 . . . . . 1 . . . . 1 3 . . . 1 . . 1 20 Impact 8 | . . . . . . . . . . . 1 . . . . 1 3 . . . 1 . . 1 1 Kinetic 31 | . . . . . 12 . . . . . . . . . . . . . . . . . . . 19 Secondary 2 | . . . . . 2 . . . . . . . . . . . . . . . . . . . . Self-Inflicted Damage 482 | . . . . . . 28 16 . 57 . . 37 . . 36 119 105 . . 79 . . . . 5 Shots 15 | . . . . . . 1 1 . 3 . . 1 . . 3 2 3 . . 1 . . . . . Rammed 37 | . . . . . . . . . . 5 5 . . . . 3 10 . . 1 7 . . 2 4 Targets Rammed 38 | . . . . . . . . . . 5 5 . . . . 3 10 . . 1 8 . . 2 4 Kicked . | . . . . . . . . . . . . . . . . . . . . . . . . . . Crushed 1 | . . . . . . . . . . . . . . . . . . . . . 1 . . . . Highest Temperature 794 | . 12 80 . 18 180 42 9 . 794 252 54 110 . 147 192 129 186 180 323 249 252 16 339 211 413 Average Temperature 73 | . 8 39 . 15 49 10 3 . 193 78 19 45 . 46 74 42 36 93 154 88 75 5 107 43 107 Received Heat Transfer 2251 | . 135 42 . 66 99 222 . . 123 12 246 45 . 18 88 49 607 . 72 . 12 5 104 108 198 Effects 11 | . . . . . . . . . 5 . . . . . . . . . . . . . 1 . 5 Shutdowns 2 | . . . . . . . . . . . . . . . . . . . . . . . . . 2 Energy Bleed 1 | . . . . . . . . . . . . . . . . . . . . . . . 1 . . Interference 6 | . . . . . . . . . 3 . . . . . . . . . . . . . . . 3 Short Circuit 1 | . . . . . . . . . 1 . . . . . . . . . . . . . . . . Damage (minor) 1 | . . . . . . . . . 1 . . . . . . . . . . . . . . . . Siege Activations 48 | . . . . . . . . . . . 9 2 1 . . . 8 1 2 . . 3 3 6 13 Total Turns 749 | . . . . . . . . . . . 113 16 7 . . . 134 22 37 . . 36 70 62 252 Longest Duration 54 | . . . . . . . . . . . 25 9 7 . . . 24 22 22 . . 16 31 16 54 Robots Corrupted 6 | . . . . . . . . . 2 . 3 . . . . . . . . 1 . . . . . Combat Hostiles 5 | . . . . . . . . . 2 . 3 . . . . . . . . . . . . . . Parts Fried 26 | . . . . . . 3 . . 10 . 3 1 . . 1 . 5 . . 2 . . 1 . . Impact Corruptions 4 | . . . . . . . . . . . 2 . . . . . 1 . . . . . . . 1 Robots Melted . | . . . . . . . . . . . . . . . . . . . . . . . . . . Combat Hostiles . | . . . . . . . . . . . . . . . . . . . . . . . . . . Parts Melted 4 | . . . . . . . . . . . . . . . . 2 1 . 1 . . . . . . Heat Transferred 3047 | . . . . 300 698 74 . . 50 481 150 . . . 100 . 750 222 111 . . . . . 111 Parts Sabotaged . | . . . . . . . . . . . . . . . . . . . . . . . . . . Parts Stolen . | . . . . . . . . . . . . . . . . . . . . . . . . . . Parts Stripped . | . . . . . . . . . . . . . . . . . . . . . . . . . . Power Chain Reactions 7 | . . . . . . . . . 3 . 2 1 . . 1 . . . . . . . . . . Missiles Intercepted . | . . . . . . . . . . . . . . . . . . . . . . . . . . Alert | -11 -10 -10 -10 -9 -8 -7 -7 -7 -7 -6 -5 -5 -5 -5 -4 -4 -4 -4 -4 -4 -3 -3 -2 -1 -1 ------- Run | Scr Mat Min Exi Min Mat Fac Was Fac DSF Fac Fac Upp Upp War Pro Fac Ext Cet Arc Hub Res DSF Res Acc Com Peak Influence 1339 | 15 250 183 . 265 504 550 158 140 279 239 397 . . . . 440 1339 836 480 622 488 536 301 669 1006 Initial 749 | . 9 97 . . 103 228 119 110 98 146 34 . . . . 220 158 749 334 168 326 366 301 170 428 Average 392 | 5 135 125 . 153 330 342 140 115 231 117 255 . . . . 323 655 817 445 192 400 474 179 359 597 Maximum Alert Level 4 | . 1 . . 1 2 2 . . 1 1 1 . . . . 2 4 3 2 2 2 2 1 2 4 Low Security (%) 22 | 100 76 100 . 70 21 . 100 100 28 81 20 . . . . . 6 . . 57 . . 44 17 . Level 1 40 | . 23 . . 29 37 73 . . 71 18 79 . . . . 83 38 . 23 41 58 16 55 51 5 Level 2 21 | . . . . . 40 26 . . . . . . . . . 16 9 . 76 . 41 83 . 30 56 Level 3 12 | . . . . . . . . . . . . . . . . . 31 100 . . . . . . 37 Level 4 2 | . . . . . . . . . . . . . . . . . 13 . . . . . . . . Level 5 . | . . . . . . . . . . . . . . . . . . . . . . . . . . High Security . | . . . . . . . . . . . . . . . . . . . . . . . . . . Max Security . | . . . . . . . . . . . . . . . . . . . . . . . . . . Sterilizations 1 | . . . . . . . . . 1 . . . . . . . . . . . . . . . . Squads Dispatched 56 | . 1 . . 1 2 5 . 1 1 2 3 . . . . 1 9 . . 2 1 2 1 10 14 Investigation 11 | . 1 . . . 1 2 . 1 . 1 1 . . . . . 3 . . . . . . 1 . Extermination 12 | . . . . . . 1 . . . 1 1 . . . . . . . . 1 . . . 3 5 Reinforcement 20 | . . . . 1 1 1 . . 1 . 1 . . . . 1 2 . . 1 1 2 1 3 4 Assault 10 | . . . . . . 1 . . . . . . . . . . 4 . . . . . . . 5 Garrison 3 | . . . . . . . . . . . . . . . . . . . . . . . . 3 . Intercept . | . . . . . . . . . . . . . . . . . . . . . . . . . . Searches Triggered 1 | . . . . . . . . . . . . . . . . . 1 . . . . . . . . Construction Impeded 4 | . . . . 1 . . . . . . 1 . . . . . 1 . . 1 . . . . . Haulers Reinforced 3 | . . . . . . . . . . . . . . . . 1 . . . . 1 . 1 . . Active Scanning Responses . | . . . . . . . . . . . . . . . . . . . . . . . . . . Cargo Convoy Interrupts . | . . . . . . . . . . . . . . . . . . . . . . . . . . Stealth | -11 -10 -10 -10 -9 -8 -7 -7 -7 -7 -6 -5 -5 -5 -5 -4 -4 -4 -4 -4 -4 -3 -3 -2 -1 -1 --------- Run | Scr Mat Min Exi Min Mat Fac Was Fac DSF Fac Fac Upp Upp War Pro Fac Ext Cet Arc Hub Res DSF Res Acc Com Distress Signals 40 | . 1 . . . 5 . . . . . 3 . . . . . . 1 . . . . 4 3 23 Communications Jammed 152 | . . . . . . . . . . . 23 . . 57 . 4 48 . . . 1 . 19 . . Distress Signals 150 | . . . . . . . . . . . 21 . . 57 . 4 48 . . . 1 . 19 . . Times Spotted 382 | . 10 4 . 9 26 14 4 . 9 5 26 4 4 20 17 5 73 5 6 1 5 7 23 28 77 Peak Tracking Total 13 | . 3 2 . 4 6 5 2 . 4 2 5 2 1 13 5 2 9 5 1 2 2 2 7 5 13 Tactical Retreats 16 | . 2 . . 1 2 1 1 . 1 . . . . . 1 . 3 . . . . . 1 . 3 Traps | -11 -10 -10 -10 -9 -8 -7 -7 -7 -7 -6 -5 -5 -5 -5 -4 -4 -4 -4 -4 -4 -3 -3 -2 -1 -1 ------- Run | Scr Mat Min Exi Min Mat Fac Was Fac DSF Fac Fac Upp Upp War Pro Fac Ext Cet Arc Hub Res DSF Res Acc Com Traps Triggered 6 | . . . . . . 1 . . 1 2 . . . . . . . . . 1 1 . . . . Indirectly 2 | . . . . . . . . . 1 . . . . . . . . . . 1 . . . . . Trap Hack Attempts . | . . . . . . . . . . . . . . . . . . . . . . . . . . Triggered . | . . . . . . . . . . . . . . . . . . . . . . . . . . Disarmed . | . . . . . . . . . . . . . . . . . . . . . . . . . . Reprogrammed . | . . . . . . . . . . . . . . . . . . . . . . . . . . Reused 2 | . . . . 2 . . . . . . . . . . . . . . . . . . . . . Traps Extracted . | . . . . . . . . . . . . . . . . . . . . . . . . . . Installed 4 | . . . . 4 . . . . . . . . . . . . . . . . . . . . . Triggered 24 | . . . . 2 . . . . . . . . 1 15 . . . . . . . . . . 6 Machines | -11 -10 -10 -10 -9 -8 -7 -7 -7 -7 -6 -5 -5 -5 -5 -4 -4 -4 -4 -4 -4 -3 -3 -2 -1 -1 ---------- Run | Scr Mat Min Exi Min Mat Fac Was Fac DSF Fac Fac Upp Upp War Pro Fac Ext Cet Arc Hub Res DSF Res Acc Com Machines Disabled 41 | . . . . 2 1 2 . . 1 . 4 1 . 1 . 5 5 . 1 10 . . 1 2 5 Max in Single Turn 10 | . . . . 2 1 2 . . 1 . 3 1 . 1 . 4 2 . 1 10 . . 1 1 2 Garrison Access 7 | . . . . . . 1 . . . 1 2 . . . . 1 . . . 1 . . . 1 . Phase Generator 1 | . . . . . . . . . . . . . . . . . . . . . . . . . 1 Network Hub 1 | . . . . . . . . . . . . . . . . . . . . 1 . . . . . Energy Cycler 1 | . . . . . . . . . . . . . . . . . . . . . . . . 1 . Machines Sabotaged . | . . . . . . . . . . . . . . . . . . . . . . . . . . Garrisons Compromised . | . . . . . . . . . . . . . . . . . . . . . . . . . . Overloaded Fab Kills 1 | . . . . . . 1 . . . . . . . . . . . . . . . . . . . Hacking | -11 -10 -10 -10 -9 -8 -7 -7 -7 -7 -6 -5 -5 -5 -5 -4 -4 -4 -4 -4 -4 -3 -3 -2 -1 -1 --------- Run | Scr Mat Min Exi Min Mat Fac Was Fac DSF Fac Fac Upp Upp War Pro Fac Ext Cet Arc Hub Res DSF Res Acc Com Machines Accessed 68 | . 5 . 1 . 6 5 . 2 . 6 8 . . 2 . 2 6 . . 7 1 . 2 6 9 Terminals 47 | . 5 . . . 5 2 . 1 . 2 4 . . . . 1 6 . . 6 1 . 2 5 7 Fabricators 4 | . . . . . . 2 . . . 2 . . . . . . . . . . . . . . . Repair Stations . | . . . . . . . . . . . . . . . . . . . . . . . . . . Recycling Units 7 | . . . . . 1 . . 1 . 1 2 . . . . . . . . . . . . . 2 Scanalyzers . | . . . . . . . . . . . . . . . . . . . . . . . . . . Garrison Access 7 | . . . . . . 1 . . . 1 2 . . . . 1 . . . 1 . . . 1 . Total Hacks 213 | . 28 . 1 . 26 15 . 3 . 21 14 . . 5 . 5 23 . . 14 2 . 13 20 23 Successful 106 | . 16 . 1 . 15 9 . 2 . 12 8 . . 5 . 2 2 . . 7 1 . 4 9 13 Failed 107 | . 12 . . . 11 6 . 1 . 9 6 . . . . 3 21 . . 7 1 . 9 11 10 Catastrophic 20 | . . . . . 1 1 . . . 1 1 . . . . 1 6 . . 1 . . 2 3 3 Database Lockouts . | . . . . . . . . . . . . . . . . . . . . . . . . . . Manual 129 | . 25 . 1 . 20 11 . 1 . 13 7 . . . . 1 10 . . 9 . . 9 11 11 Terminals 169 | . 28 . . . 25 9 . 2 . 7 7 . . . . 2 23 . . 13 2 . 13 18 20 Fabricators 16 | . . . . . . 4 . . . 12 . . . . . . . . . . . . . . . Repair Stations . | . . . . . . . . . . . . . . . . . . . . . . . . . . Recycling Units 9 | . . . . . 1 . . 1 . 1 3 . . . . . . . . . . . . . 3 Scanalyzers . | . . . . . . . . . . . . . . . . . . . . . . . . . . Garrison Access 13 | . . . . . . 2 . . . 1 4 . . . . 3 . . . 1 . . . 2 . Terminal Hacks 54 | . 12 . 1 . 8 3 . 1 . 2 2 . . 5 . . 2 . . 2 1 . 4 4 7 Part Schematic 2 | . 1 . . . 1 . . . . . . . . . . . . . . . . . . . . Robot Analysis 12 | . 7 . . . 4 . . . . . . . . . . . . . . . . . . 1 . Prototype ID Bank 8 | . . . . . 2 . . . . . . . . 4 . . . . . 1 . . 1 . . Open Door 3 | . . . . . . . . . . . . . . 1 . . . . . . . . . 1 1 Open DSF 2 | . . . . . . . . 1 . . . . . . . . . . . . 1 . . . . Branch Access Points 3 | . . . . . . . . . . 1 1 . . . . . . . . . . . 1 . . Machine Index 1 | . . . . . . . . . . . . . . . . . . . . . . . . 1 . Terminal Index 4 | . 1 . . . . 1 . . . . 1 . . . . . . . . . . . . . 1 Alert Level 1 | . . . . . . . . . . . . . . . . . . . . . . . . . 1 Unreport Threat 6 | . . . . . . 1 . . . 1 . . . . . . 2 . . . . . 2 . . Locate Traps 7 | . 2 . . . 1 1 . . . . . . . . . . . . . 1 . . . . 2 Registered Components 2 | . . . . . . . . . . . . . . . . . . . . . . . . 1 1 Zone Layout 1 | . 1 . . . . . . . . . . . . . . . . . . . . . . . . EX-Prototype ID Bank 1 | . . . 1 . . . . . . . . . . . . . . . . . . . . . . Disengage Seal 1 | . . . . . . . . . . . . . . . . . . . . . . . . . 1 Fabricator Hacks 6 | . . . . . . 1 . . . 5 . . . . . . . . . . . . . . . Network Status 2 | . . . . . . 1 . . . 1 . . . . . . . . . . . . . . . Load Schematic 2 | . . . . . . . . . . 2 . . . . . . . . . . . . . . . Build 2 | . . . . . . . . . . 2 . . . . . . . . . . . . . . . Repair Station Hacks . | . . . . . . . . . . . . . . . . . . . . . . . . . . Recycling Unit Hacks . | . . . . . . . . . . . . . . . . . . . . . . . . . . Scanalyzer . | . . . . . . . . . . . . . . . . . . . . . . . . . . Garrison Access Hacks 6 | . . . . . . . . . . 1 2 . . . . 1 . . . 1 . . . 1 . Seal Access 6 | . . . . . . . . . . 1 2 . . . . 1 . . . 1 . . . 1 . Unauthorized Hacks 40 | . 4 . . . 7 5 . 1 . 4 4 . . . . 1 . . . 4 . . . 4 6 Terminals 29 | . 4 . . . 6 2 . . . 1 2 . . . . 1 . . . 4 . . . 4 5 Track 7 | . 2 . . . 1 . . . . . . . . . . . . . . 2 . . . . 2 Assimilate 3 | . . . . . 2 . . . . . . . . . . . . . . . . . . 1 . Botnet 15 | . 1 . . . 2 2 . . . 1 1 . . . . 1 . . . 2 . . . 3 2 Disrupt 1 | . . . . . . . . . . . . . . . . . . . . . . . . . 1 Operators 3 | . 1 . . . 1 . . . . . 1 . . . . . . . . . . . . . . Fabricators 5 | . . . . . . 3 . . . 2 . . . . . . . . . . . . . . . Prioritize 1 | . . . . . . . . . . 1 . . . . . . . . . . . . . . . Fabnet 1 | . . . . . . 1 . . . . . . . . . . . . . . . . . . . Haulers 2 | . . . . . . 1 . . . 1 . . . . . . . . . . . . . . . Overload 1 | . . . . . . 1 . . . . . . . . . . . . . . . . . . . Repair Stations . | . . . . . . . . . . . . . . . . . . . . . . . . . . Recycling Units 6 | . . . . . 1 . . 1 . 1 2 . . . . . . . . . . . . . 1 Recyclers 2 | . . . . . . . . . . . 1 . . . . . . . . . . . . . 1 Tunnel 4 | . . . . . 1 . . 1 . 1 1 . . . . . . . . . . . . . . Scanalyzers . | . . . . . . . . . . . . . . . . . . . . . . . . . . Garrison Access . | . . . . . . . . . . . . . . . . . . . . . . . . . . Data Cores Recovered . | . . . . . . . . . . . . . . . . . . . . . . . . . . Used . | . . . . . . . . . . . . . . . . . . . . . . . . . . Hacking Detections 52 | . 5 . . . 5 4 . . . 4 5 . . . . 2 6 . . 6 . . 2 6 7 Full Trace Events 6 | . 1 . . . . 1 . . . . . . . . . . 3 . . . . . . 1 . Feedback Events 1 | . . . . . . . . . . . . . . . . . . . . . . . . 1 . Corruption 1 | . . . . . . . . . . . . . . . . . . . . . . . . 1 . Feedback Blocked . | . . . . . . . . . . . . . . . . . . . . . . . . . . Robot Schematics Acquired . | . . . . . . . . . . . . . . . . . . . . . . . . . . Robots Built . | . . . . . . . . . . . . . . . . . . . . . . . . . . Authchips . | . . . . . . . . . . . . . . . . . . . . . . . . . . Time . | . . . . . . . . . . . . . . . . . . . . . . . . . . Total Robot Build Rating . | . . . . . . . . . . . . . . . . . . . . . . . . . . Part Schematics Acquired 2 | . 1 . . . 1 . . . . . . . . . . . . . . . . . . . . Parts Built 3 | . . . . . . . . . . 3 . . . . . . . . . . . . . . . Authchips 2 | . . . . . . . . . . 2 . . . . . . . . . . . . . . . Time 30 | . . . . . . . . . . 30 . . . . . . . . . . . . . . . Total Part Build Rating 7 | . . . . . . . . . . 7 . . . . . . . . . . . . . . . Parts Repaired . | . . . . . . . . . . . . . . . . . . . . . . . . . . Time . | . . . . . . . . . . . . . . . . . . . . . . . . . . Parts Recycled . | . . . . . . . . . . . . . . . . . . . . . . . . . . Recycled Matter . | . . . . . . . . . . . . . . . . . . . . . . . . . . Retrieved Matter . | . . . . . . . . . . . . . . . . . . . . . . . . . . Retrieved Components . | . . . . . . . . . . . . . . . . . . . . . . . . . . Parts Scanalyzed . | . . . . . . . . . . . . . . . . . . . . . . . . . . Part Schematics Acquired . | . . . . . . . . . . . . . . . . . . . . . . . . . . Parts Damaged . | . . . . . . . . . . . . . . . . . . . . . . . . . . Bothacking | -11 -10 -10 -10 -9 -8 -7 -7 -7 -7 -6 -5 -5 -5 -5 -4 -4 -4 -4 -4 -4 -3 -3 -2 -1 -1 ------------ Run | Scr Mat Min Exi Min Mat Fac Was Fac DSF Fac Fac Upp Upp War Pro Fac Ext Cet Arc Hub Res DSF Res Acc Com Used RIF Installer . | . . . . . . . . . . . . . . . . . . . . . . . . . . Robots Hacked 2 | . . . . . . . . . . . . . . 1 . . . . . . . . . . 1 Non-combat . | . . . . . . . . . . . . . . . . . . . . . . . . . . Combat 2 | . . . . . . . . . . . . . . 1 . . . . . . . . . . 1 Robot Hacks Applied 1 | . . . . . . . . . . . . . . . . . . . . . . . . . 1 parse_system 1 | . . . . . . . . . . . . . . . . . . . . . . . . . 1 Relay Couplers Released 6 | . . . . . . 2 . . . . . . . . . 2 . . . . . . . 2 . Machine Destruction 6 | . . . . . . 2 . . . . . . . . . 2 . . . . . . . 2 . Fabnet Peak Effective % 3 | . . . . . . . . . . 3 1 1 1 1 . . . . . . . . . . . Autooverrided 1 | . . . . . . . . . . . . . . 1 . . . . . . . . . . . Robots Rewired 6 | . . . . . . . . . . . . . . . . . 6 . . . . . . . . Allies Hacked . | . . . . . . . . . . . . . . . . . . . . . . . . . . Hacks Repelled . | . . . . . . . . . . . . . . . . . . . . . . . . . . Allies | -11 -10 -10 -10 -9 -8 -7 -7 -7 -7 -6 -5 -5 -5 -5 -4 -4 -4 -4 -4 -4 -3 -3 -2 -1 -1 -------- Run | Scr Mat Min Exi Min Mat Fac Was Fac DSF Fac Fac Upp Upp War Pro Fac Ext Cet Arc Hub Res DSF Res Acc Com Total Allies 10 | . . . . . 1 . 1 . . . . . . 1 . . 7 . . . . . . . . Largest Group 6 | . . . . . 1 1 1 . . . . . . 1 . . 6 1 1 . . . . . . Highest-Rated Group 244 | . . . . . 10 10 31 . . . . . . 30 . . 244 159 152 . . . . . . Highest-Rated Ally 159 | . . . . . 10 10 31 . . . . . . 30 . . 159 159 152 . . . . . . Total Orders 5 | . . . . . 2 3 . . . . . . . . . . . . . . . . . . . STAY 3 | . . . . . 1 2 . . . . . . . . . . . . . . . . . . . FOLLOW 2 | . . . . . 1 1 . . . . . . . . . . . . . . . . . . . Ally Attacks 106 | . . . . . . . 15 . . . . . . 4 . . 75 11 1 . . . . . . Total Damage 3114 | . . . . . . . 185 . . . . . . 238 . . 2335 316 40 . . . . . . Kills 17 | . . . . . . . . . . . . . . 1 . . 13 3 . . . . . . . Allies Corrupted . | . . . . . . . . . . . . . . . . . . . . . . . . . . Allies Melted . | . . . . . . . . . . . . . . . . . . . . . . . . . . Intel | -11 -10 -10 -10 -9 -8 -7 -7 -7 -7 -6 -5 -5 -5 -5 -4 -4 -4 -4 -4 -4 -3 -3 -2 -1 -1 ------- Run | Scr Mat Min Exi Min Mat Fac Was Fac DSF Fac Fac Upp Upp War Pro Fac Ext Cet Arc Hub Res DSF Res Acc Com Robot Analysis Total 12 | . 7 . . . 4 . . . . . . . . . . . . . . . . . . 1 . Derelict Logs Recovered 3 | . . . . 1 . . . . . . . . 2 . . . . . . . . . . . . Drone Launches . | . . . . . . . . . . . . . . . . . . . . . . . . . . Drone Recoveries . | . . . . . . . . . . . . . . . . . . . . . . . . . . Exploration | -11 -10 -10 -10 -9 -8 -7 -7 -7 -7 -6 -5 -5 -5 -5 -4 -4 -4 -4 -4 -4 -3 -3 -2 -1 -1 ------------- Run | Scr Mat Min Exi Min Mat Fac Was Fac DSF Fac Fac Upp Upp War Pro Fac Ext Cet Arc Hub Res DSF Res Acc Com Turns Passed 14362 | 74 264 159 269 201 648 440 129 89 334 692 1266 411 325 820 391 527 2241 175 197 339 379 277 742 1189 1784 Spaces Moved 7484 | 49 220 105 262 101 333 291 88 76 153 367 604 200 184 477 196 261 979 82 73 192 187 109 369 642 884 Core 93 | 17 . . . . . . . . . . . . . . . . . . . . . . . . 76 Treads 5879 | . . . . . 13 . . . 136 367 604 200 184 477 196 261 979 82 73 192 187 109 369 642 808 Legs . | . . . . . . . . . . . . . . . . . . . . . . . . . . Wheels 1512 | 32 220 105 262 101 320 291 88 76 17 . . . . . . . . . . . . . . . . Hover . | . . . . . . . . . . . . . . . . . . . . . . . . . . Flight . | . . . . . . . . . . . . . . . . . . . . . . . . . . Fastest Speed 50 | 50 80 90 90 95 95 101 110 110 110 160 160 160 160 160 162 162 162 160 160 160 155 155 145 145 50 Average Speed 144 | 79 87 90 100 103 114 101 110 110 156 160 160 160 160 160 162 162 165 160 160 160 159 155 149 146 141 Slowest Speed 245 | 100 90 90 105 115 160 110 110 110 160 160 160 160 160 162 162 162 245 162 160 160 160 155 155 150 155 Overloaded Moves . | . . . . . . . . . . . . . . . . . . . . . . . . . . Propulsion Burnouts . | . . . . . . . . . . . . . . . . . . . . . . . . . . Robots Hopped . | . . . . . . . . . . . . . . . . . . . . . . . . . . Cave-ins Triggered . | . . . . . . . . . . . . . . . . . . . . . . . . . . Exploration Rate (%) 42 | 3 37 25 65 35 40 10 71 2 83 15 26 47 52 83 51 11 93 63 86 36 9 91 18 24 39 Regions Visited 25 Branch Regions 12 Pre-discovered Areas 4 | . . . . . 1 . . 1 . 1 1 . . . . . . . . . . . . . . Known Exits Taken 5 | . . . . . 1 . . 1 . . 1 . . . . 1 . . . . 1 . . . . Unknown Exits Taken 16 | 1 1 1 1 1 . . . . . 1 . 1 1 1 1 . 1 1 1 1 . . 1 1 . Scrap Searched 3 | . . . . . . . . . . . . 1 . . 2 . . . . . . . . . . Spaces Dug 81 | . . . . . 10 . . . . 3 7 13 . . . 4 1 . . 2 4 5 11 7 14 Terrain Destroyed 696 | . . 2 . 10 23 1 41 . 11 4 30 13 . . 31 36 160 2 3 159 9 5 19 39 98 Melee 1 | . . . . . . . . . . . . . . . . . 1 . . . . . . . . Projectile 208 | . . 2 . . 10 1 1 . . 4 9 13 . . 7 11 64 2 3 2 9 5 19 17 29 AOE 485 | . . . . 10 13 . 40 . 11 . 21 . . . 24 25 95 . . 157 . . . 20 69 Terrain Rammed . | . . . . . . . . . . . . . . . . . . . . . . . . . . Walls Destroyed . | . . . . . . . . . . . . . . . . . . . . . . . . . . Machines Disabled . | . . . . . . . . . . . . . . . . . . . . . . . . . . Actions | -11 -10 -10 -10 -9 -8 -7 -7 -7 -7 -6 -5 -5 -5 -5 -4 -4 -4 -4 -4 -4 -3 -3 -2 -1 -1 --------- Run | Scr Mat Min Exi Min Mat Fac Was Fac DSF Fac Fac Upp Upp War Pro Fac Ext Cet Arc Hub Res DSF Res Acc Com Total 9518 | 70 263 132 267 150 481 365 99 81 220 439 780 250 198 521 226 311 1348 107 114 219 233 178 489 793 1184 Wait 207 | . 12 1 . 3 11 7 . . 1 . 32 8 3 . . . 34 . 3 . . 10 9 31 42 Move 7459 | 48 219 104 261 100 332 291 87 75 152 366 603 199 183 476 195 260 978 81 72 191 186 108 368 641 883 Hop . | . . . . . . . . . . . . . . . . . . . . . . . . . . Pick Up 175 | 5 2 1 3 4 20 6 2 2 12 14 9 2 1 5 1 4 24 4 4 3 6 6 10 7 18 Fast Attach 98 | 7 . . . 1 6 1 . . 5 8 4 1 1 7 . 2 13 2 1 3 1 1 13 8 13 Attach 111 | 1 3 . . 2 8 8 . . 5 4 5 2 1 2 1 4 17 2 2 1 4 2 5 5 27 Detach 35 | 1 1 . . 1 3 . . . . 3 1 . . 3 . 2 3 1 . 2 . . 5 2 7 Swap 393 | 2 8 8 2 8 31 12 1 2 14 11 55 11 2 12 10 10 49 2 9 8 10 24 23 33 36 Drop 205 | . 2 1 1 . 19 6 . 2 15 13 10 3 . 11 . 4 27 6 7 7 4 8 21 12 26 Fire 699 | 6 16 17 . 27 51 34 9 . 15 15 56 24 7 5 19 22 100 9 16 3 14 19 35 52 128 Melee 1 | . . . . . . . . . . . . . . . . . 1 . . . . . . . . Ram 1 | . . . . . . . . . . . . . . . . . . . . . . . . . 1 Kick . | . . . . . . . . . . . . . . . . . . . . . . . . . . Crush 37 | . . . . . . . . . . 5 5 . . . . 3 10 . . 1 8 . . 2 3 Escape Stasis . | . . . . . . . . . . . . . . . . . . . . . . . . . . Rewire 93 | . . . . . . . . . 1 . . . . . . . 92 . . . . . . . . Trap 4 | . . . . 4 . . . . . . . . . . . . . . . . . . . . . Miscellaneous . | . . . . . . . . . . . . . . . . . . . . . . . . . . Route ------- -11/Scrapyard -10/Materials (discovered 2 exits: [*Min x2]) -10/Mines (discovered 2 exits: [*Mat] / *Exi) -10/Exiles (discovered 2 exits: [*Min x2]) -9/Mines -8/Materials (discovered 2 exits: *Fac x2) -7/Factory -7/Waste -7/Factory -7/DSF -6/Factory (discovered 3 exits: *Fac / Low x2) -5/Factory (discovered 2 exits: *Upp x2) -5/Upper Caves -5/Upper Caves -5/Warlord -4/Proximity Caves -4/Factory -4/Extension (discovered 2 exits: *Res / *Cet) -4/Cetus -4/Archives (discovered 3 exits: *Res / *Hub x2) -4/Hub_04(d) -3/Research (discovered 3 exits: Res / Arm / DSF) -3/DSF -2/Research (discovered 3 exits: *Acc / *Tes x2) -1/Access -1/Command (discovered 2 exits: [*Sur x2]) 0b11 Command History --------- Turn | Location | Event 17 | -11/Scrapyard | Discovered new exit (range 15) 75 | -11/Scrapyard | Entered Materials 80 | -10/Materials | Discovered new exit (range 16) 331 | -10/Materials | Discovered new exit (range 8) 339 | -10/Materials | Entered Mines 362 | -10/Mines | Received a Rocket Launcher from a helpful Derelict 369 | -10/Mines | Discovered new exit (range 9) 395 | -10/Mines | Excavation squad dispatched 395 | -10/Mines | A large section of the Mines collapsed 495 | -10/Mines | Deemed a non-threat by the Exiles lab entrance 495 | -10/Mines | Discovered new exit (range 5) 498 | -10/Mines | Entered Exiles 510 | -10/Exiles | Discovered new exit (range 15) 523 | -10/Exiles | Met 8R-AWN 536 | -10/Exiles | Met EX-HEX 608 | -10/Exiles | Met EX-BIN 620 | -10/Exiles | Aligned with FarCom system 621 | -10/Exiles | Given EX-Vault access code 645 | -10/Exiles | Opened EX-Vault 654 | -10/Exiles | Found Superbattery 676 | -10/Exiles | Warned to stay clear of 0b10 Research branches 705 | -10/Exiles | Met EX-DEC 720 | -10/Exiles | Build established: Mutant 759 | -10/Exiles | Discovered new exit (range 10) 767 | -10/Exiles | Left Exiles lab with Superbattery 767 | -10/Exiles | Entered Mines 781 | -9/Mines | Met a Derelict bent on vengeance 846 | -9/Mines | Learned 8 Materials zone layouts 881 | -9/Mines | Core integrity fell below 50% 888 | -9/Mines | Found a hidden stash of uninstalled traps 965 | -9/Mines | Discovered new exit (range 4) 968 | -9/Mines | Entered Materials 968 | -8/Materials | Evolved 4 slots: Propulsion x1, Utility x2, Weapon x1 969 | -8/Materials | Identified exit to Factory 1616 | -8/Materials | Entered Factory 1616 | -7/Factory | Accompanied by 1 ally 1616 | -7/Factory | Evolved 2 slots: Propulsion x1, Utility x1 1685 | -7/Factory | Build established: Scavenger-Skirmisher 2053 | -7/Factory | Lost 4 parts (3n1w) 2056 | -7/Factory | Sucked down chute 2056 | -7/Factory | Entered Waste 2057 | -7/Waste | Met a frightened Derelict 2071 | -7/Waste | EMP discharged 2071 | -7/Waste | System corruption reached 10% 2073 | -7/Waste | Spotted C-40 Crusher 2091 | -7/Waste | Destroyed C-40 Crusher 2098 | -7/Waste | Spotted C-40 Crusher 2138 | -7/Waste | Spotted C-40 Crusher 2156 | -7/Waste | Destroyed C-40 Crusher 2168 | -7/Waste | Discovered new exit (range 10) 2171 | -7/Waste | EMP discharged 2185 | -7/Waste | Entered Factory 2272 | -7/Factory | Identified exit to DSF 2274 | -7/Factory | Entered DSF 2288 | -7/DSF | Additional patrols routed to DSF 2342 | -7/DSF | Discovered new exit (range 15) 2392 | -7/DSF | Lost 3 parts (2n1w) 2484 | -7/DSF | Sterilization system engaged 2504 | -7/DSF | Ambient heat levels rising (+10) 2519 | -7/DSF | Ambient heat levels rising (+10) 2534 | -7/DSF | Ambient heat levels rising (+10) 2543 | -7/DSF | Build established: Skirmisher 2549 | -7/DSF | Ambient heat levels rising (+10) 2564 | -7/DSF | Ambient heat levels rising (+10) 2579 | -7/DSF | Ambient heat levels rising (+10) 2594 | -7/DSF | Ambient heat levels rising (+10) 2608 | -7/DSF | Entered Factory 2608 | -6/Factory | Evolved 2 slots: Utility x2 2873 | -6/Factory | Fabricated Huge Storage Unit? 2907 | -6/Factory | Fabricated Lrn. Tractor Beam (x2) 2915 | -6/Factory | Build established: Scavenger-Mutant 3033 | -6/Factory | Discovered new exit (range 15) 3168 | -6/Factory | Identified exit to Lower Caves 3300 | -6/Factory | Entered another Factory area 3300 | -5/Factory | Evolved 2 slots: Propulsion x1, Utility x1 4386 | -5/Factory | Identified exit to Upper Caves 4407 | -5/Factory | Build established: Scavenger-Skirmisher 4566 | -5/Factory | Entered Upper Caves 4615 | -5/Upper Caves | Attracted the attention of an 0b10 checkpoint 4857 | -5/Upper Caves | Attacked by a delusional Derelict stockpiling parts 4920 | -5/Upper Caves | Encountered a Warlord checkpoint 4961 | -5/Upper Caves | Discovered new exit (range 11) 4977 | -5/Upper Caves | Entered another Upper Caves area 4998 | -5/Upper Caves | Learned Factory garrison access intel 5286 | -5/Upper Caves | Discovered new exit (range 11) 5287 | -5/Upper Caves | Encountered a Warlord checkpoint 5302 | -5/Upper Caves | Entered Warlord 5634 | -5/Warlord | Met Warlord 5642 | -5/Warlord | Warlord's base attacked by MAIN.C 5777 | -5/Warlord | Found Prototype Energy Gun 5777 | -5/Warlord | Identified Vortex Shotgun 5781 | -5/Warlord | Found Vortex Shotgun 5978 | -5/Warlord | Spotted Executioner 5992 | -5/Warlord | Warlord forces counterattacked 6043 | -5/Warlord | Spotted Executioner 6047 | -5/Warlord | Spotted Executioner 6080 | -5/Warlord | Found Prototype Processor 6080 | -5/Warlord | Identified Exp. Core Analyzer 6101 | -5/Warlord | Discovered new exit (range 15) 6122 | -5/Warlord | Entered Proximity Caves 6463 | -4/Proximity Caves | Discovered new exit (range 15) 6505 | -4/Proximity Caves | System corruption reached 10% 6513 | -4/Proximity Caves | Entered Factory 6513 | -4/Factory | Evolved 2 slots: Power x1, Weapon x1 6514 | -4/Factory | Loaded intel: 4 garrison access locations 6987 | -4/Factory | Discovered new exit (range 9) 7028 | -4/Factory | Identified exit to Extension 7040 | -4/Factory | Entered Extension 7540 | -4/Extension | Search patrols dispatched 8011 | -4/Extension | Spotted B-86 Titan 8037 | -4/Extension | Allies destroyed B-86 Titan 8042 | -4/Extension | Spotted B-86 Titan 8078 | -4/Extension | Destroyed B-86 Titan 8115 | -4/Extension | Disrupted transfer network 8196 | -4/Extension | P-70 Sage assimilated allied LR-TOZ(h) 8236 | -4/Extension | Destroyed 7 combat bots 8290 | -4/Extension | First assault squad dispatched 8433 | -4/Extension | Destroyed 10 combat bots 8439 | -4/Extension | Lost 6 parts (1p3n1u1w) 8969 | -4/Extension | Rescued A7 9243 | -4/Extension | Discovered new exit (range 22) 9243 | -4/Extension | Discovered new exit (range 22) 9281 | -4/Extension | Entered Cetus 9281 | -4/Cetus | Accompanied by 1 ally (A7) 9286 | -4/Cetus | Acquired a Cetus Manufacturing Module code from A7 9298 | -4/Cetus | Spotted Cetus Guard 9298 | -4/Cetus | Spotted Cetus Guard 9298 | -4/Cetus | Spotted Cetus Guard 9298 | -4/Cetus | Spotted Cetus Guard 9309 | -4/Cetus | Allies destroyed Cetus Guard 9317 | -4/Cetus | Destroyed Cetus Guard 9322 | -4/Cetus | Allies destroyed Cetus Guard 9325 | -4/Cetus | Allies destroyed Cetus Guard 9421 | -4/Cetus | Discovered new exit (range 23) 9456 | -4/Cetus | Entered Archives 9456 | -4/Archives | Accompanied by 1 ally (A7) 9554 | -4/Archives | Discovered new exit (range 22) 9576 | -4/Archives | Discovered new exit (range 22) 9601 | -4/Archives | Discovered new exit (range 22) 9653 | -4/Archives | Entered Hub_04(d) 9966 | -4/Hub_04(d) | Discovered new exit (range 5) 9984 | -4/Hub_04(d) | System corruption reached 10% 9989 | -4/Hub_04(d) | Network Hub disabled 9992 | -4/Hub_04(d) | Entered Research 9992 | -3/Research | Evolved 2 slots: Utility x2 9993 | -3/Research | Identified exit to Armory 10308 | -3/Research | Discovered new exit (range 15) 10368 | -3/Research | Identified exit to DSF 10371 | -3/Research | Entered DSF 10396 | -3/DSF | Discovered new exit (range 23) 10425 | -3/DSF | Additional patrols routed to DSF 10648 | -3/DSF | Entered Research 10648 | -2/Research | Warlord forces began assault on 0b10 10648 | -2/Research | Evolved 2 slots: Utility x2 10677 | -2/Research | Identified exit to Testing 10758 | -2/Research | Research machine network offline 11034 | -2/Research | Discovered new exit (range 7) 11078 | -2/Research | Spotted Executioner 11082 | -2/Research | Destroyed Executioner 11085 | -2/Research | Spotted Executioner 11116 | -2/Research | Found Exp. Core Analyzer 11133 | -2/Research | Found Prototype Processor 11133 | -2/Research | Identified Exp. Targeting Computer 11142 | -2/Research | Found Exp. Core Analyzer 11206 | -2/Research | Met up with Warlord 11245 | -2/Research | Spotted Executioner 11245 | -2/Research | Spotted Striker 11264 | -2/Research | Destroyed Executioner 11264 | -2/Research | Destroyed Striker 11290 | -2/Research | Found Prototype Device 11290 | -2/Research | Identified Adv. Kinecellerator 11328 | -2/Research | Spotted GX-4RW(L) 11390 | -2/Research | Entered Access 11390 | -1/Access | Evolved 2 slots: Utility x2 11426 | -1/Access | Build established: Scavenger-Gunner 11452 | -1/Access | Garrison activated, responded to threat 11753 | -1/Access | Spotted B-99 Colossus 12205 | -1/Access | Energy Cycler disabled 12537 | -1/Access | Discovered new exit (range 9) 12579 | -1/Access | Entered Command 12685 | -1/Command | Spotted B-99 Colossus 12936 | -1/Command | Spotted B-99 Colossus 13018 | -1/Command | Destroyed B-99 Colossus 13072 | -1/Command | Found Prototype Ballistic Gun 13072 | -1/Command | Identified Multirail 13075 | -1/Command | Found Multirail 13111 | -1/Command | Disengaged cave seal 13117 | -1/Command | Welcomed Warlord to Command 13404 | -1/Command | Phase Generator disabled 13643 | -1/Command | P-80 Master assimilated allied 03-3VG(s) 13829 | -1/Command | First assault squad dispatched 13965 | -1/Command | Spotted M Guard 13967 | -1/Command | Spotted M Guard 13968 | -1/Command | Spotted Combat Programmer 13968 | -1/Command | Spotted Combat Programmer 13971 | -1/Command | Warlord commented on Warlord statues 13984 | -1/Command | System corruption reached 10% 13989 | -1/Command | Destroyed M Guard 14000 | -1/Command | Destroyed Combat Programmer 14000 | -1/Command | All MAIN.C guards destroyed 14107 | -1/Command | Met MAIN.C 14109 | -1/Command | Warlord shut down involuntarily 14133 | -1/Command | Destroyed MAIN.C Shell 14136 | -1/Command | MAIN.C activated Command garrisons 14144 | -1/Command | 0b10 Conduit disabled 14160 | -1/Command | System corruption reached 30% 14191 | -1/Command | Destroyed MAIN.C 14219 | -1/Command | Lost 13 parts (2p3n6u2w) 14263 | -1/Command | Discovered new exit (range 38) 14263 | -1/Command | Discovered new exit (range 92) 14263 | -1/Command | Extracted map data and part IDs from MAIN.C's data core 14279 | -1/Command | Destroyed 8 combat bots 14320 | -1/Command | Released all parts (20) 14330 | -1/Command | Core integrity fell below 50% 14357 | -1/Command | Lost 6 parts (2p1n1u2w) 14363 | *** | Establishing 0b11! Last Messages --------------- 14321_ Acquired Adv. Heavy Siege Treads. 14322_ Penetrated by Slug. 14326_ Adv. Heavy Siege Treads destroyed. 14326_ Penetrated by Slug. 14326_ Slug penetrates Wall. 14326_ Slammed into H-88 Terminator. 14328_ Slug penetrates Wall. 14329_ Penetrated by Slug. 14329_ Acquired 2 matter. 14329_ Critical hit (Burn: +37). 14331_ System corrupted: Matter fused (-9). 14332_ P-80 Master hacks G-73 Enforcer, rebooting. 14346_ System corrupted: Matter fused (-5). 14348_ Acquired 14 matter. 14360_ Dropped Adv. System Shield. 14361_ /#HVOBXBKZFVP3JBY%PSRIY 14361_ Dropped Railgun. 14361_ Dropped Adv. Remote Datajack. 14362_ Dropped Railgun. 14362_ Dropped Nova Cannon. Map ----- +----------------------------------------------------+ | # #######???# ######???????? | | # # #???# # #???????? | | # ##### #???# # #???????? | | # #???# #???# # #???????? | | # #???# #???# # #???????? | | # #???# #???# # #???????? | | # #???# #???# # #???????? | | # #???# #???# # #???????? | | # #???# ###########+#+######## #???????? | | #####+####???# # ## + #???????? | | + #??????#### ## ##+#########???????? | | # #?????????# ## # #???????? | | # #?????????# ## + #???????? | | # #?????????# ## # """" #???????? | | # #??######## ## # ""R"" #???????? | | + #??# ###+###### # "" "" #???????? | | #!%#??# # #???????? | | #%!#??# # #???????? | | #= #??# + #???????? | | # #??# # "" #???????? | | # #??# ############### """" #???????? | | # #??### ###?????????????# """" #???????? | | #### #????# #???????????????# "" #???????? | | ???# #????# #????????#####??# #???????? | | ??## ##???# #????????# #??# #???????? | | ### ##### ##########|@ #??# #???????? | | [!] #??############???????# | | = g [ #???????????????????##? | | ### #####################??????????????##???#?# | | ??## ###########?????#############?????########## | | ???# # """"" #?????# """"" #?????##?####### | | ???# + ""T"" #####?# ""T"" #??#?######?#### | | ???#% # % # #?# ########?####### | | ???# # ! ### #?# ## ###?#"""" | | ???# # #?# ### ## #####"" | | ???# # #?# #g ## ##?#"""" | | ???#% # #?##### ## #####"""" | | ???#% # [ #?##########+####### #?###" | | ???#%!#########+#?# + # #####"" | | ####+#######??# #?# # + #?###"" | | #??# #?# """ !#= # ##### " | | #??# #?# """ # # ##### " | | #??# #?# R" # # ##### " | | #??# ### """ # # #####"""" | | #??# + "" # %! # ###?#"" | | #??##### # = #######?###% | | ######## # #?##?######%!* | | # #######"## % ###########=[% | | # [ % % % !=]%] | | + %= % % % % ] !![ | +----------------------------------------------------+ Best States ------------- Heat Dissipation 109 Energy Generation 53 Energy Capacity 2100 Matter Stores 697 Matter Capacity 700 Sight Range 23 Terrain Scan Range 20 Terrain Scan Density 210 Jamming Range 14 Armor Coverage 450 Resistance: KI 20 Resistance: TH 30 Resistance: EX 50 Utility Shielding 66 Weapon Cycling 30 Evasion (%) 50 Targeting Accuracy 18 Target Analysis 12 Core Analysis 12 Recoil Reduction 5 Kinecelleration 50 Salvage Targeting 3 Offensive Hacking 38 Defensive Hacking 12 Authchip Count 2 Item Schematics ----------------- Huge Storage Unit | -10/Materials | Hacked Lrn. Tractor Beam | -8/Materials | Hacked Robot Schematics ------------------ None Fabricated ------------ Huge Storage Unit | x1 | -6/Factory | Authchip Lrn. Tractor Beam | x2 | -6/Factory | Authchip Alien Tech Used ----------------- None Achievements -------------- None Challenges ------------ None Game ------ Seed SpikedScanInsulator Manual? 0 Play Time 04:02:58 Cumulative 720.4 hours Start 2022.07.02 @ 12:34:54 End 2022.07.02 @ 17:40:01 Sessions 5 Manual Loads 0 Difficulty Rogue Special Mode None Game No. 379 Rogue 252 Adventurer 125 Explorer 2 Win Type 1 Total 84 Types 72/5/4/1/1/0/0/0/1 Lore% 82 Gallery% 89 Achievement% 76 Wizard Run 0 Options --------- ASCII 0 Keyboard 1 Movement Numpad Keybinds 0 Fullscreen 1 Font 36/TerminusFine Map View 76x50 Tactical HUD 1 Map Filters NONE Filters NONE Steam 1 RUN: 26537f95-8700-4e2a-9538-b0c81868a604